[Event "Late-Titled-Tuesday-Blitz-October-17-2023"]
[Site "Chess.com"]
[Date "2023.10.17"]
[Round "11"]
[White "Deeper44"]
[Black "FuenfgegenWilly"]
[Result "1-0"]
[WhiteElo "2614"]
[BlackElo "2402"]
[TimeControl "180+1"]
[EndTime "16:02:07 PDT"]
[Termination "Deeper44 won by resignation"]

1. d4 {[%clk 0:03:00]} 1... d5 {[%clk 0:03:00]} 2. c4 {[%clk 0:03:00]} 2... e5
{[%clk 0:03:00]} 3. dxe5 {[%clk 0:02:59.9]} 3... d4 {[%clk 0:03:00.9]} 4. Nf3
{[%clk 0:02:59.3]} 4... Nc6 {[%clk 0:03:01.3]} 5. a3 {[%clk 0:02:59.8]} 5...
Nge7 {[%clk 0:03:01.6]} 6. b4 {[%clk 0:02:48.2]} 6... Ng6 {[%clk 0:03:01.8]} 7.
Bb2 {[%clk 0:02:48.1]} 7... Ngxe5 {[%clk 0:02:58.5]} 8. Nxe5 {[%clk 0:02:49]}
8... Nxe5 {[%clk 0:02:58.7]} 9. e3 {[%clk 0:02:49.6]} 9... c5 {[%clk 0:02:50.6]}
10. exd4 {[%clk 0:02:45.5]} 10... cxd4 {[%clk 0:02:40.3]} 11. Qxd4 {[%clk
0:02:25.8]} 11... Qxd4 {[%clk 0:02:32.8]} 12. Bxd4 {[%clk 0:02:26.7]} 12... Nc6
{[%clk 0:02:32.9]} 13. Bb2 {[%clk 0:02:23]} 13... Bg4 {[%clk 0:02:31.4]} 14. f3
{[%clk 0:02:11.8]} 14... Bf5 {[%clk 0:02:30.3]} 15. Be2 {[%clk 0:02:00]} 15...
O-O-O {[%clk 0:02:29.9]} 16. O-O {[%clk 0:01:59]} 16... Nd4 {[%clk 0:02:27.7]}
17. Bxd4 {[%clk 0:01:53.7]} 17... Rxd4 {[%clk 0:02:28.6]} 18. Nc3 {[%clk
0:01:50.3]} 18... Be7 {[%clk 0:02:09.9]} 19. Rad1 {[%clk 0:01:49.5]} 19... Rxd1
{[%clk 0:01:59]} 20. Rxd1 {[%clk 0:01:48.8]} 20... Be6 {[%clk 0:01:55.7]} 21.
Nd5 {[%clk 0:01:33.3]} 21... Bg5 {[%clk 0:01:50.5]} 22. f4 {[%clk 0:01:27.6]}
22... Bxd5 {[%clk 0:01:32.9]} 23. fxg5 {[%clk 0:01:12.8]} 23... Be6 {[%clk
0:01:33.1]} 24. Kf2 {[%clk 0:01:09.1]} 24... h6 {[%clk 0:01:31.8]} 25. gxh6
{[%clk 0:01:06]} 25... Rxh6 {[%clk 0:01:32.7]} 26. h3 {[%clk 0:01:05.8]} 26...
Rh4 {[%clk 0:01:32.9]} 27. c5 {[%clk 0:01:02.9]} 27... a5 {[%clk 0:01:31]} 28.
Bg4 {[%clk 0:00:20.6]} 28... Bxg4 {[%clk 0:01:25.4]} 29. Rd4 {[%clk 0:00:19.1]}
29... axb4 {[%clk 0:01:19.9]} 30. axb4 {[%clk 0:00:18.5]} 30... f5 {[%clk
0:01:10.4]} 31. Kg3 {[%clk 0:00:13.5]} 31... g5 {[%clk 0:01:05.8]} 32. hxg4
{[%clk 0:00:12.9]} 32... Kc7 {[%clk 0:00:57.7]} 33. b5 {[%clk 0:00:12]} 33...
f4+ {[%clk 0:00:38.2]} 34. Kf3 {[%clk 0:00:11.9]} 34... Rh1 {[%clk 0:00:38.1]}
35. Rd5 {[%clk 0:00:09.3]} 35... Rf1+ {[%clk 0:00:37.3]} 36. Ke4 {[%clk
0:00:08.8]} 36... Re1+ {[%clk 0:00:35.2]} 37. Kf5 {[%clk 0:00:08.6]} 37... Rb1
{[%clk 0:00:21]} 38. b6+ {[%clk 0:00:07.7]} 38... Kc6 {[%clk 0:00:21.4]} 39. Re5
{[%clk 0:00:08.4]} 39... Rg1 {[%clk 0:00:06.9]} 40. Kxg5 {[%clk 0:00:08.4]}
40... Rxg2 {[%clk 0:00:06.8]} 41. Kxf4 {[%clk 0:00:08.5]} 41... Rg1 {[%clk
0:00:07.1]} 42. g5 {[%clk 0:00:08.6]} 42... Rf1+ {[%clk 0:00:07.5]} 43. Kg4
{[%clk 0:00:08.8]} 43... Rg1+ {[%clk 0:00:07.1]} 44. Kh5 {[%clk 0:00:09]} 44...
Kb5 {[%clk 0:00:06.8]} 45. g6 {[%clk 0:00:08.3]} 45... Ka6 {[%clk 0:00:06.7]}
46. Rg5 {[%clk 0:00:08.1]} 46... Rh1+ {[%clk 0:00:06.8]} 47. Kg4 {[%clk
0:00:07.9]} 47... Rg1+ {[%clk 0:00:05.7]} 48. Kf4 {[%clk 0:00:08.1]} 48... Rf1+
{[%clk 0:00:06.6]} 49. Ke5 {[%clk 0:00:08.2]} 49... Rf8 {[%clk 0:00:06.7]} 50.
g7 {[%clk 0:00:08.3]} 50... Rg8 {[%clk 0:00:06.2]} 51. Kf6 {[%clk 0:00:08.3]}
51... Kb5 {[%clk 0:00:04.9]} 52. Kf7 {[%clk 0:00:08.3]} 52... Rc8 {[%clk
0:00:04.1]} 53. g8=Q {[%clk 0:00:08.1]} 1-0

[Event "Late-Titled-Tuesday-Blitz-October-17-2023"]
[Site "Chess.com"]
[Date "2023.10.17"]
[Round "11"]
[White "mind1mover"]
[Black "BardArtem"]
[Result "1-0"]
[WhiteElo "2893"]
[BlackElo "2764"]
[TimeControl "180+1"]
[EndTime "16:02:54 PDT"]
[Termination "mind1mover won by checkmate"]

1. Nf3 {[%clk 0:03:00.9]} 1... d5 {[%clk 0:02:59]} 2. b3 {[%clk 0:03:01.3]} 2...
Nf6 {[%clk 0:02:57.4]} 3. Bb2 {[%clk 0:03:01.6]} 3... c6 {[%clk 0:02:57.5]} 4.
c4 {[%clk 0:03:00.5]} 4... Bf5 {[%clk 0:02:57.6]} 5. g3 {[%clk 0:03:00.6]} 5...
e6 {[%clk 0:02:57.6]} 6. Bg2 {[%clk 0:03:01.3]} 6... h6 {[%clk 0:02:58]} 7. O-O
{[%clk 0:03:01.6]} 7... Nbd7 {[%clk 0:02:58.6]} 8. d3 {[%clk 0:03:02.1]} 8...
Be7 {[%clk 0:02:58.5]} 9. Nbd2 {[%clk 0:03:02.7]} 9... O-O {[%clk 0:02:58.7]}
10. a3 {[%clk 0:03:03.2]} 10... a5 {[%clk 0:02:57.9]} 11. Ra2 {[%clk 0:03:02]}
11... Bh7 {[%clk 0:02:56]} 12. Qa1 {[%clk 0:03:02.1]} 12... Re8 {[%clk
0:02:56.3]} 13. Ne5 {[%clk 0:03:02.2]} 13... Nxe5 {[%clk 0:02:45.3]} 14. Bxe5
{[%clk 0:03:03.1]} 14... Bf8 {[%clk 0:02:45.9]} 15. Rc1 {[%clk 0:02:48.3]} 15...
Nd7 {[%clk 0:01:49.4]} 16. Bc3 {[%clk 0:02:48]} 16... f6 {[%clk 0:01:44.5]} 17.
b4 {[%clk 0:02:40.1]} 17... axb4 {[%clk 0:01:34.7]} 18. axb4 {[%clk 0:02:39.2]}
18... Bd6 {[%clk 0:01:32.8]} 19. Qb2 {[%clk 0:02:21.6]} 19... Rxa2 {[%clk
0:01:27.8]} 20. Qxa2 {[%clk 0:02:22.5]} 20... Qe7 {[%clk 0:01:27.6]} 21. Qb2
{[%clk 0:01:47.5]} 21... Ra8 {[%clk 0:01:20.1]} 22. e4 {[%clk 0:01:39.1]} 22...
d4 {[%clk 0:01:06.2]} 23. Bxd4 {[%clk 0:01:37]} 23... Bxb4 {[%clk 0:01:06.5]}
24. Rb1 {[%clk 0:01:05.3]} 24... e5 {[%clk 0:00:49.9]} 25. Be3 {[%clk
0:00:58.4]} 25... c5 {[%clk 0:00:40.8]} 26. Ra1 {[%clk 0:00:47.4]} 26... Qd8
{[%clk 0:00:39.5]} 27. Bh3 {[%clk 0:00:41.3]} 27... Nf8 {[%clk 0:00:27]} 28.
Rxa8 {[%clk 0:00:24.9]} 28... Qxa8 {[%clk 0:00:27.9]} 29. f4 {[%clk 0:00:22.6]}
29... Qa3 {[%clk 0:00:21.2]} 30. Qxa3 {[%clk 0:00:15.5]} 30... Bxa3 {[%clk
0:00:22.1]} 31. fxe5 {[%clk 0:00:16.1]} 31... fxe5 {[%clk 0:00:23]} 32. Nf3
{[%clk 0:00:16.6]} 32... Ng6 {[%clk 0:00:16.9]} 33. Bf5 {[%clk 0:00:15.7]} 33...
b6 {[%clk 0:00:17.1]} 34. Bxg6 {[%clk 0:00:14.7]} 34... Bxg6 {[%clk 0:00:18]}
35. Nxe5 {[%clk 0:00:14.6]} 35... Be8 {[%clk 0:00:18.9]} 36. Kf2 {[%clk
0:00:12.3]} 36... Bb2 {[%clk 0:00:17.1]} 37. Nf3 {[%clk 0:00:09.5]} 37... g5
{[%clk 0:00:13.7]} 38. Ke2 {[%clk 0:00:07.2]} 38... Bh5 {[%clk 0:00:13]} 39. Kf2
{[%clk 0:00:07.7]} 39... Be8 {[%clk 0:00:12.6]} 40. h3 {[%clk 0:00:08.1]} 40...
Bd7 {[%clk 0:00:12.5]} 41. g4 {[%clk 0:00:08]} 41... Ba4 {[%clk 0:00:12.5]} 42.
Ke2 {[%clk 0:00:08]} 42... Kf7 {[%clk 0:00:12]} 43. Kd2 {[%clk 0:00:05.9]} 43...
Ke6 {[%clk 0:00:10.9]} 44. h4 {[%clk 0:00:05.4]} 44... gxh4 {[%clk 0:00:07.3]}
45. Nxh4 {[%clk 0:00:06.3]} 45... Bf6 {[%clk 0:00:03.4]} 46. Nf5 {[%clk
0:00:06.8]} 46... Kf7 {[%clk 0:00:02.2]} 47. Bxh6 {[%clk 0:00:05.3]} 47... Kg6
{[%clk 0:00:02.3]} 48. Bf4 {[%clk 0:00:05.9]} 48... Bc6 {[%clk 0:00:01.2]} 49.
e5 {[%clk 0:00:03.8]} 49... Bd8 {[%clk 0:00:01.3]} 50. Nd6 {[%clk 0:00:02.9]}
50... Bb7 {[%clk 0:00:01.3]} 51. g5 {[%clk 0:00:03.4]} 51... Bc6 {[%clk
0:00:01.6]} 52. Ke3 {[%clk 0:00:03.8]} 52... Be7 {[%clk 0:00:01.4]} 53. Ne4
{[%clk 0:00:04]} 53... Bd8 {[%clk 0:00:01.3]} 54. Nf6 {[%clk 0:00:03.6]} 54...
Be7 {[%clk 0:00:01.3]} 55. Kd2 {[%clk 0:00:02.3]} 55... Bd8 {[%clk 0:00:01.8]}
56. Ke2 {[%clk 0:00:02.5]} 56... b5 {[%clk 0:00:02.5]} 57. cxb5 {[%clk
0:00:02.4]} 57... Bxb5 {[%clk 0:00:03.4]} 58. Ke3 {[%clk 0:00:02.9]} 58... c4
{[%clk 0:00:03.9]} 59. d4 {[%clk 0:00:03]} 59... c3 {[%clk 0:00:04.6]} 60. Ke4
{[%clk 0:00:02.5]} 60... c2 {[%clk 0:00:04.3]} 61. Bc1 {[%clk 0:00:03.1]} 61...
Ba5 {[%clk 0:00:04.3]} 62. d5 {[%clk 0:00:02.9]} 62... Bb4 {[%clk 0:00:04.8]}
63. d6 {[%clk 0:00:02.5]} 63... Kf7 {[%clk 0:00:05.5]} 64. Kd5 {[%clk
0:00:01.8]} 64... Ba4 {[%clk 0:00:05.3]} 65. e6+ {[%clk 0:00:02.2]} 65... Kg6
{[%clk 0:00:05.2]} 66. d7 {[%clk 0:00:02.4]} 66... Be7 {[%clk 0:00:04.6]} 67.
Ke5 {[%clk 0:00:03]} 67... Bb5 {[%clk 0:00:03.6]} 68. Nd5 {[%clk 0:00:03.4]}
68... Bxg5 {[%clk 0:00:02.1]} 69. Bxg5 {[%clk 0:00:04.3]} 69... Kxg5 {[%clk
0:00:03]} 70. d8=Q+ {[%clk 0:00:04.2]} 70... Kg4 {[%clk 0:00:03.7]} 71. Qc7
{[%clk 0:00:04.4]} 71... Bc4 {[%clk 0:00:01.7]} 72. Ne3+ {[%clk 0:00:05.3]}
72... Kf3 {[%clk 0:00:02]} 73. Qxc4 {[%clk 0:00:05.9]} 73... c1=Q {[%clk
0:00:01.6]} 74. Qxc1 {[%clk 0:00:05.8]} 74... Ke2 {[%clk 0:00:02.3]} 75. Qc7
{[%clk 0:00:06.4]} 75... Kd3 {[%clk 0:00:03.2]} 76. Qd7+ {[%clk 0:00:07]} 76...
Ke2 {[%clk 0:00:03.8]} 77. Nd5 {[%clk 0:00:07.8]} 77... Kf3 {[%clk 0:00:04.7]}
78. Nf6 {[%clk 0:00:08.4]} 78... Ke2 {[%clk 0:00:05.6]} 79. Kd6 {[%clk
0:00:09.1]} 79... Kd3 {[%clk 0:00:06.5]} 80. Ke7+ {[%clk 0:00:10]} 80... Ke3
{[%clk 0:00:06.7]} 81. Qd6 {[%clk 0:00:10.9]} 81... Kf3 {[%clk 0:00:07]} 82. Kd7
{[%clk 0:00:11.8]} 82... Kg2 {[%clk 0:00:07.1]} 83. Ne8 {[%clk 0:00:12.7]} 83...
Kh3 {[%clk 0:00:08]} 84. Nc7 {[%clk 0:00:13.6]} 84... Kg2 {[%clk 0:00:08.9]} 85.
e7 {[%clk 0:00:14.5]} 85... Kf3 {[%clk 0:00:09.8]} 86. Qe6 {[%clk 0:00:14.9]}
86... Kf4 {[%clk 0:00:09.7]} 87. Kd6 {[%clk 0:00:15.2]} 87... Kg5 {[%clk
0:00:10.6]} 88. Qf7 {[%clk 0:00:15.3]} 88... Kh4 {[%clk 0:00:11.2]} 89. Qg7
{[%clk 0:00:15.5]} 89... Kh3 {[%clk 0:00:11.7]} 90. e8=Q {[%clk 0:00:16.2]}
90... Kh4 {[%clk 0:00:12.6]} 91. Qeh8# {[%clk 0:00:16.6]} 1-0

[Event "Late-Titled-Tuesday-Blitz-October-17-2023"]
[Site "Chess.com"]
[Date "2023.10.17"]
[Round "11"]
[White "BogdanDeac"]
[Black "AradNazari"]
[Result "1-0"]
[WhiteElo "2999"]
[BlackElo "2920"]
[TimeControl "180+1"]
[EndTime "16:03:12 PDT"]
[Termination "BogdanDeac won by checkmate"]

1. d4 {[%clk 0:03:00.9]} 1... Nf6 {[%clk 0:02:57.7]} 2. Nf3 {[%clk 0:03:01.1]}
2... d5 {[%clk 0:02:58]} 3. c4 {[%clk 0:02:59.7]} 3... e6 {[%clk 0:02:57.1]} 4.
e3 {[%clk 0:02:57.8]} 4... Nbd7 {[%clk 0:02:54.8]} 5. Nc3 {[%clk 0:02:54.9]}
5... dxc4 {[%clk 0:02:54.6]} 6. Bxc4 {[%clk 0:02:54.7]} 6... a6 {[%clk
0:02:55.3]} 7. a4 {[%clk 0:02:52.2]} 7... b6 {[%clk 0:02:55]} 8. e4 {[%clk
0:02:47.8]} 8... Bb7 {[%clk 0:02:50.2]} 9. e5 {[%clk 0:02:47.2]} 9... Ne4 {[%clk
0:02:47.1]} 10. O-O {[%clk 0:02:28.7]} 10... Bb4 {[%clk 0:02:41.3]} 11. Nxe4
{[%clk 0:01:36]} 11... Bxe4 {[%clk 0:02:42.2]} 12. Ng5 {[%clk 0:01:36.4]} 12...
Bg6 {[%clk 0:02:28.6]} 13. Qg4 {[%clk 0:01:32.6]} 13... O-O {[%clk 0:02:20.3]}
14. h4 {[%clk 0:00:41.1]} 14... Bf5 {[%clk 0:01:48]} 15. Qf4 {[%clk 0:00:26.1]}
15... h6 {[%clk 0:01:44.9]} 16. Ne4 {[%clk 0:00:22.8]} 16... Be7 {[%clk
0:01:39.3]} 17. Ng3 {[%clk 0:00:19.9]} 17... Bh7 {[%clk 0:01:35.1]} 18. Qg4
{[%clk 0:00:10.9]} 18... Kh8 {[%clk 0:01:33.9]} 19. Nh5 {[%clk 0:00:04.4]} 19...
Rg8 {[%clk 0:01:31.3]} 20. Qf3 {[%clk 0:00:03.6]} 20... Qe8 {[%clk 0:01:21]} 21.
Qg3 {[%clk 0:00:02.3]} 21... c6 {[%clk 0:01:10.4]} 22. Be3 {[%clk 0:00:02.1]}
22... b5 {[%clk 0:01:10.6]} 23. Bb3 {[%clk 0:00:02.4]} 23... Nb6 {[%clk
0:01:10.9]} 24. axb5 {[%clk 0:00:02.7]} 24... axb5 {[%clk 0:01:11.2]} 25. Rxa8
{[%clk 0:00:02.7]} 25... Qxa8 {[%clk 0:01:12.1]} 26. Qf3 {[%clk 0:00:03.2]}
26... Qe8 {[%clk 0:01:12.1]} 27. Ra1 {[%clk 0:00:02.5]} 27... Bxh4 {[%clk
0:01:02.9]} 28. Ra7 {[%clk 0:00:02.6]} 28... Bg6 {[%clk 0:01:03.1]} 29. Nf4
{[%clk 0:00:02.7]} 29... Bf5 {[%clk 0:01:03.5]} 30. g4 {[%clk 0:00:02.5]} 30...
Bh7 {[%clk 0:00:59.3]} 31. Ng2 {[%clk 0:00:02.5]} 31... Be7 {[%clk 0:00:56]} 32.
Nf4 {[%clk 0:00:01.9]} 32... Nd5 {[%clk 0:00:54.2]} 33. Nxd5 {[%clk 0:00:01.9]}
33... cxd5 {[%clk 0:00:55.1]} 34. Bd2 {[%clk 0:00:02.3]} 34... f6 {[%clk
0:00:50.4]} 35. Bf4 {[%clk 0:00:01.9]} 35... Rf8 {[%clk 0:00:50.3]} 36. Qg3
{[%clk 0:00:01.8]} 36... Rf7 {[%clk 0:00:50.6]} 37. exf6 {[%clk 0:00:01.8]}
37... Bxf6 {[%clk 0:00:51.1]} 38. Rxf7 {[%clk 0:00:02.3]} 38... Qxf7 {[%clk
0:00:52]} 39. Be5 {[%clk 0:00:02.9]} 39... Be4 {[%clk 0:00:51.5]} 40. Bd1 {[%clk
0:00:02.4]} 40... Bg5 {[%clk 0:00:43.7]} 41. f4 {[%clk 0:00:02.4]} 41... Bf6
{[%clk 0:00:41.2]} 42. Bxf6 {[%clk 0:00:01.8]} 42... Qxf6 {[%clk 0:00:41.4]} 43.
Qf2 {[%clk 0:00:02.5]} 43... b4 {[%clk 0:00:36.3]} 44. Be2 {[%clk 0:00:03]}
44... Qd8 {[%clk 0:00:33.4]} 45. Qg3 {[%clk 0:00:02.7]} 45... Qc7 {[%clk
0:00:33.2]} 46. Qe3 {[%clk 0:00:02.6]} 46... Qc2 {[%clk 0:00:31]} 47. b3 {[%clk
0:00:02.7]} 47... Qc3 {[%clk 0:00:28.1]} 48. Kf2 {[%clk 0:00:03]} 48... Bc2
{[%clk 0:00:27.5]} 49. Qxc3 {[%clk 0:00:02.9]} 49... bxc3 {[%clk 0:00:28.4]} 50.
b4 {[%clk 0:00:03.6]} 50... Ba4 {[%clk 0:00:20.5]} 51. Ke3 {[%clk 0:00:03.9]}
51... g6 {[%clk 0:00:18.9]} 52. b5 {[%clk 0:00:04.2]} 52... c2 {[%clk
0:00:16.7]} 53. Kd2 {[%clk 0:00:04.1]} 53... Kg7 {[%clk 0:00:14]} 54. b6 {[%clk
0:00:04.5]} 54... Bc6 {[%clk 0:00:14.7]} 55. Kxc2 {[%clk 0:00:04.7]} 55... Kf6
{[%clk 0:00:13.7]} 56. Kd2 {[%clk 0:00:05]} 56... Ke7 {[%clk 0:00:12]} 57. Ba6
{[%clk 0:00:04.1]} 57... Kd6 {[%clk 0:00:11.9]} 58. Ke3 {[%clk 0:00:04.7]} 58...
g5 {[%clk 0:00:11.8]} 59. f5 {[%clk 0:00:04]} 59... exf5 {[%clk 0:00:09.4]} 60.
gxf5 {[%clk 0:00:04.9]} 60... Be8 {[%clk 0:00:09.7]} 61. f6 {[%clk 0:00:04.6]}
61... Bf7 {[%clk 0:00:09.4]} 62. b7 {[%clk 0:00:04.4]} 62... Kc7 {[%clk
0:00:09.7]} 63. Kf3 {[%clk 0:00:04.9]} 63... Be6 {[%clk 0:00:10.1]} 64. Kg3
{[%clk 0:00:05.2]} 64... h5 {[%clk 0:00:10.4]} 65. Bb5 {[%clk 0:00:05.2]} 65...
h4+ {[%clk 0:00:08.8]} 66. Kf2 {[%clk 0:00:04.3]} 66... Bf7 {[%clk 0:00:08.9]}
67. Bc6 {[%clk 0:00:03.7]} 67... g4 {[%clk 0:00:09.2]} 68. Kg2 {[%clk
0:00:03.8]} 68... Kb8 {[%clk 0:00:06.3]} 69. Kf2 {[%clk 0:00:03.9]} 69... Kc7
{[%clk 0:00:06.5]} 70. Kg2 {[%clk 0:00:04]} 70... Kb8 {[%clk 0:00:05.9]} 71. Bd7
{[%clk 0:00:04.3]} 71... Kxb7 {[%clk 0:00:03.9]} 72. Bxg4 {[%clk 0:00:04.3]}
72... Kc6 {[%clk 0:00:04.6]} 73. Kh3 {[%clk 0:00:04.6]} 73... Kd6 {[%clk
0:00:04.1]} 74. Kxh4 {[%clk 0:00:04.9]} 74... Bg8 {[%clk 0:00:02.4]} 75. Kg5
{[%clk 0:00:04.9]} 75... Kc6 {[%clk 0:00:02.5]} 76. Bh5 {[%clk 0:00:03.8]} 76...
Kb5 {[%clk 0:00:02.4]} 77. Kf5 {[%clk 0:00:04.2]} 77... Kc4 {[%clk 0:00:02.1]}
78. Ke5 {[%clk 0:00:04.6]} 78... Kd3 {[%clk 0:00:02.1]} 79. f7 {[%clk 0:00:05]}
79... Bxf7 {[%clk 0:00:02.8]} 80. Bxf7 {[%clk 0:00:05.9]} 80... Kc4 {[%clk
0:00:02.9]} 81. Bxd5+ {[%clk 0:00:06.8]} 81... Kb5 {[%clk 0:00:03.1]} 82. Be4
{[%clk 0:00:07.7]} 82... Kb6 {[%clk 0:00:03.7]} 83. d5 {[%clk 0:00:08.6]} 83...
Kc7 {[%clk 0:00:04.5]} 84. d6+ {[%clk 0:00:09.5]} 84... Kd8 {[%clk 0:00:05.4]}
85. Bd5 {[%clk 0:00:10]} 85... Kc8 {[%clk 0:00:06.3]} 86. Bc4 {[%clk 0:00:10.5]}
86... Kd8 {[%clk 0:00:07.2]} 87. Ke6 {[%clk 0:00:11.3]} 87... Kc8 {[%clk
0:00:08.1]} 88. Ke7 {[%clk 0:00:11.6]} 88... Kb7 {[%clk 0:00:08.5]} 89. Be6
{[%clk 0:00:12.5]} 89... Ka7 {[%clk 0:00:09.2]} 90. d7 {[%clk 0:00:13.4]} 90...
Kb6 {[%clk 0:00:09.9]} 91. d8=Q+ {[%clk 0:00:14.3]} 91... Ka7 {[%clk 0:00:10.7]}
92. Qd6 {[%clk 0:00:14.4]} 92... Kb7 {[%clk 0:00:10.7]} 93. Bd5+ {[%clk
0:00:14.9]} 93... Ka7 {[%clk 0:00:11.6]} 94. Qc7+ {[%clk 0:00:15]} 94... Ka6
{[%clk 0:00:12.1]} 95. Bc4# {[%clk 0:00:15.7]} 1-0

[Event "Late-Titled-Tuesday-Blitz-October-17-2023"]
[Site "Chess.com"]
[Date "2023.10.17"]
[Round "11"]
[White "jaskol95"]
[Black "Rodalquilar"]
[Result "0-1"]
[WhiteElo "2579"]
[BlackElo "2767"]
[TimeControl "180+1"]
[EndTime "16:03:20 PDT"]
[Termination "Rodalquilar won by checkmate"]

1. e4 {[%clk 0:02:58.3]} 1... d5 {[%clk 0:03:00.2]} 2. exd5 {[%clk 0:02:58]}
2... Qxd5 {[%clk 0:03:01.1]} 3. Nc3 {[%clk 0:02:57.9]} 3... Qa5 {[%clk 0:03:01]}
4. Nf3 {[%clk 0:02:56.1]} 4... Nf6 {[%clk 0:03:00.8]} 5. Bc4 {[%clk 0:02:52]}
5... Nc6 {[%clk 0:03:00.2]} 6. h3 {[%clk 0:02:48.2]} 6... Bf5 {[%clk 0:02:57.9]}
7. d3 {[%clk 0:02:48.1]} 7... Ne5 {[%clk 0:02:46.5]} 8. Nxe5 {[%clk 0:02:47.3]}
8... Qxe5+ {[%clk 0:02:46.7]} 9. Qe2 {[%clk 0:02:47.8]} 9... Qxe2+ {[%clk
0:02:46.6]} 10. Kxe2 {[%clk 0:02:48.7]} 10... e6 {[%clk 0:02:41.5]} 11. Nb5
{[%clk 0:02:41.8]} 11... Kd7 {[%clk 0:02:33.9]} 12. Bf4 {[%clk 0:02:38.5]} 12...
a6 {[%clk 0:02:29.3]} 13. Nd4 {[%clk 0:02:34.1]} 13... Bg6 {[%clk 0:02:27.9]}
14. Nf3 {[%clk 0:02:32.4]} 14... Bd6 {[%clk 0:02:13]} 15. Ne5+ {[%clk
0:02:32.5]} 15... Ke7 {[%clk 0:02:13.4]} 16. Nxg6+ {[%clk 0:02:31.4]} 16... hxg6
{[%clk 0:02:13.6]} 17. Bd2 {[%clk 0:02:27.5]} 17... Rh5 {[%clk 0:01:47.5]} 18.
Rhe1 {[%clk 0:02:20.3]} 18... Rf5 {[%clk 0:01:46.7]} 19. a4 {[%clk 0:02:09.5]}
19... Bf4 {[%clk 0:01:43.5]} 20. Bb4+ {[%clk 0:01:58.4]} 20... c5 {[%clk
0:01:39.3]} 21. Ba3 {[%clk 0:01:47.3]} 21... Bd6 {[%clk 0:01:34.7]} 22. Kf1
{[%clk 0:01:45.2]} 22... g5 {[%clk 0:01:26.2]} 23. f3 {[%clk 0:01:14.1]} 23...
g4 {[%clk 0:01:24.9]} 24. hxg4 {[%clk 0:01:14.5]} 24... Nxg4 {[%clk 0:01:25]}
25. Ke2 {[%clk 0:01:11.2]} 25... Ne5 {[%clk 0:01:00.8]} 26. Bb3 {[%clk
0:01:11.1]} 26... Rh8 {[%clk 0:00:54.5]} 27. Rh1 {[%clk 0:01:06.5]} 27... Rc8
{[%clk 0:00:44.2]} 28. Rad1 {[%clk 0:01:03.4]} 28... Ng6 {[%clk 0:00:36.2]} 29.
Kf2 {[%clk 0:00:58.4]} 29... b5 {[%clk 0:00:34.5]} 30. axb5 {[%clk 0:00:29.5]}
30... axb5 {[%clk 0:00:35.4]} 31. g4 {[%clk 0:00:21.6]} 31... Rf4 {[%clk
0:00:35.5]} 32. Rh7 {[%clk 0:00:14.6]} 32... b4 {[%clk 0:00:29.2]} 33. Rxg7
{[%clk 0:00:12.9]} 33... bxa3 {[%clk 0:00:29.5]} 34. bxa3 {[%clk 0:00:13.8]}
34... Ne5 {[%clk 0:00:29.9]} 35. Re1 {[%clk 0:00:10.7]} 35... Rxf3+ {[%clk
0:00:23.1]} 36. Kg2 {[%clk 0:00:10.9]} 36... Rf4 {[%clk 0:00:23.6]} 37. g5
{[%clk 0:00:11.1]} 37... c4 {[%clk 0:00:16.5]} 38. dxc4 {[%clk 0:00:10.3]} 38...
Nxc4 {[%clk 0:00:17.4]} 39. g6 {[%clk 0:00:09.9]} 39... Rg4+ {[%clk 0:00:17.8]}
40. Kf3 {[%clk 0:00:07.9]} 40... Rxg6 {[%clk 0:00:18.2]} 41. Rh7 {[%clk
0:00:06.7]} 41... Rf6+ {[%clk 0:00:16.8]} 42. Ke4 {[%clk 0:00:06.7]} 42... Nd2+
{[%clk 0:00:16.1]} 43. Kd3 {[%clk 0:00:07.3]} 43... Nxb3 {[%clk 0:00:15.9]} 44.
cxb3 {[%clk 0:00:08.2]} 44... Rf3+ {[%clk 0:00:16.1]} 45. Ke4 {[%clk 0:00:08.3]}
45... Rxb3 {[%clk 0:00:15.3]} 46. Kd4 {[%clk 0:00:05.6]} 46... Rxa3 {[%clk
0:00:14.2]} 47. Rf1 {[%clk 0:00:04.9]} 47... Bc5+ {[%clk 0:00:10.9]} 48. Kc4
{[%clk 0:00:04.8]} 48... Ra4+ {[%clk 0:00:06.3]} 49. Kd3 {[%clk 0:00:03]} 49...
Bd6 {[%clk 0:00:05.9]} 50. Rfxf7+ {[%clk 0:00:02.5]} 50... Ke8 {[%clk
0:00:04.7]} 51. Rb7 {[%clk 0:00:02.8]} 51... Ra3+ {[%clk 0:00:03.3]} 52. Kd4
{[%clk 0:00:02.9]} 52... Ra4+ {[%clk 0:00:03.2]} 53. Kd3 {[%clk 0:00:03.5]}
53... Bf8 {[%clk 0:00:03.8]} 54. Rbd7 {[%clk 0:00:02.5]} 54... Rd8 {[%clk
0:00:03.1]} 55. Rxd8+ {[%clk 0:00:02.6]} 55... Kxd8 {[%clk 0:00:03.6]} 56. Ke3
{[%clk 0:00:03.2]} 56... Ke8 {[%clk 0:00:03.7]} 57. Kd3 {[%clk 0:00:03.5]} 57...
Rf4 {[%clk 0:00:03.4]} 58. Ke3 {[%clk 0:00:03.7]} 58... Rf7 {[%clk 0:00:03.8]}
59. Rh5 {[%clk 0:00:03.5]} 59... Ke7 {[%clk 0:00:04.3]} 60. Ke4 {[%clk
0:00:03.8]} 60... Bg7 {[%clk 0:00:04.9]} 61. Rh3 {[%clk 0:00:03.6]} 61... Bf6
{[%clk 0:00:05.4]} 62. Ra3 {[%clk 0:00:03.6]} 62... Rg7 {[%clk 0:00:04.7]} 63.
Ra7+ {[%clk 0:00:03.8]} 63... Kf8 {[%clk 0:00:04.8]} 64. Ra8+ {[%clk 0:00:04.4]}
64... Kf7 {[%clk 0:00:05.1]} 65. Kf4 {[%clk 0:00:05]} 65... Be7 {[%clk
0:00:04.1]} 66. Ke5 {[%clk 0:00:04.8]} 66... Rg5+ {[%clk 0:00:04.3]} 67. Kf4
{[%clk 0:00:05.5]} 67... Rb5 {[%clk 0:00:04.8]} 68. Ra7 {[%clk 0:00:05.3]} 68...
Kf6 {[%clk 0:00:04.6]} 69. Kg4 {[%clk 0:00:06]} 69... Rb4+ {[%clk 0:00:05]} 70.
Kh5 {[%clk 0:00:06.5]} 70... e5 {[%clk 0:00:02.9]} 71. Rc7 {[%clk 0:00:04.7]}
71... e4 {[%clk 0:00:02.8]} 72. Kg4 {[%clk 0:00:05.3]} 72... Bd6 {[%clk
0:00:02.3]} 73. Rc8 {[%clk 0:00:04.5]} 73... Ke5 {[%clk 0:00:02.8]} 74. Re8+
{[%clk 0:00:04.5]} 74... Kd4 {[%clk 0:00:03.3]} 75. Rd8 {[%clk 0:00:05.2]} 75...
Rb6 {[%clk 0:00:03.7]} 76. Kh3 {[%clk 0:00:04.7]} 76... Ke3 {[%clk 0:00:03.9]}
77. Kg2 {[%clk 0:00:05.5]} 77... Bf4 {[%clk 0:00:04]} 78. Rd1 {[%clk 0:00:04.9]}
78... Rb2+ {[%clk 0:00:04.2]} 79. Kh3 {[%clk 0:00:05]} 79... Rh2+ {[%clk
0:00:03.6]} 80. Kg4 {[%clk 0:00:05.5]} 80... Rg2+ {[%clk 0:00:03.7]} 81. Kh3
{[%clk 0:00:06]} 81... Rg3+ {[%clk 0:00:04.2]} 82. Kh2 {[%clk 0:00:05.8]} 82...
Rg7+ {[%clk 0:00:04.8]} 83. Kh1 {[%clk 0:00:06.1]} 83... Ke2 {[%clk 0:00:05]}
84. Re1+ {[%clk 0:00:06.1]} 84... Kd3 {[%clk 0:00:05.3]} 85. Rd1+ {[%clk
0:00:04.6]} 85... Bd2 {[%clk 0:00:05.7]} 86. Kh2 {[%clk 0:00:04.8]} 86... e3
{[%clk 0:00:06.2]} 87. Rf1 {[%clk 0:00:04.2]} 87... e2 {[%clk 0:00:06.2]} 88.
Rf3+ {[%clk 0:00:04.9]} 88... Be3 {[%clk 0:00:06.7]} 89. Rf1 {[%clk 0:00:04.3]}
89... Rh7+ {[%clk 0:00:05.9]} 90. Kg2 {[%clk 0:00:04.4]} 90... exf1=Q+ {[%clk
0:00:06.2]} 91. Kg3 {[%clk 0:00:03.6]} 91... Rg7+ {[%clk 0:00:06.3]} 92. Kh2
{[%clk 0:00:04.2]} 92... Qg2# {[%clk 0:00:06.7]} 0-1